[Event "*** SCC Grand Prix: Titled Tuesday Blitz"]
[Site "Chess.com"]
[Date "2020.07.07"]
[Round "1"]
[White "Bigfish1995"]
[Black "AwareIdea"]
[Result "1/2-1/2"]
[WhiteElo "3060"]
[BlackElo "2472"]
[TimeControl "180+1"]
[EndTime "10:07:20 PDT"]
[Termination "Game drawn by agreement"]

1. e4 {[%clk 0:02:59.7]} 1... e5 {[%clk 0:02:59.6]} 2. Nf3 {[%clk 0:02:59.5]}
2... Nc6 {[%clk 0:02:59.4]} 3. Nc3 {[%clk 0:02:59.5]} 3... Nf6 {[%clk
0:02:59.1]} 4. d4 {[%clk 0:03:00]} 4... exd4 {[%clk 0:03:00]} 5. Nxd4 {[%clk
0:03:00.8]} 5... Bb4 {[%clk 0:03:00.2]} 6. Nxc6 {[%clk 0:03:01]} 6... bxc6
{[%clk 0:03:01.1]} 7. Bd3 {[%clk 0:03:01.5]} 7... d5 {[%clk 0:03:00.4]} 8. exd5
{[%clk 0:03:01.8]} 8... cxd5 {[%clk 0:03:01.3]} 9. O-O {[%clk 0:03:02.2]} 9...
O-O {[%clk 0:03:00.8]} 10. Qf3 {[%clk 0:03:02.3]} 10... c6 {[%clk 0:03:00.7]}
11. Bg5 {[%clk 0:03:00.9]} 11... h6 {[%clk 0:03:00.7]} 12. Bxf6 {[%clk
0:03:01.3]} 12... Qxf6 {[%clk 0:03:01.6]} 13. Qxf6 {[%clk 0:03:01.9]} 13... gxf6
{[%clk 0:03:02.5]} 14. Ne2 {[%clk 0:03:02.4]} 14... Bd6 {[%clk 0:02:54.5]} 15.
Rad1 {[%clk 0:03:00.6]} 15... Rb8 {[%clk 0:02:51.5]} 16. b3 {[%clk 0:02:59.9]}
16... Bg4 {[%clk 0:02:49.8]} 17. h3 {[%clk 0:02:55.5]} 17... Bxe2 {[%clk
0:02:48]} 18. Bxe2 {[%clk 0:02:56.4]} 18... Rfd8 {[%clk 0:02:30.2]} 19. Rd4
{[%clk 0:02:51.7]} 19... Bc5 {[%clk 0:02:24]} 20. Ra4 {[%clk 0:02:46.9]} 20...
Rb4 {[%clk 0:01:48.4]} 21. Ra5 {[%clk 0:02:45.5]} 21... Bb6 {[%clk 0:01:38.4]}
22. Ra6 {[%clk 0:02:45.3]} 22... Re4 {[%clk 0:01:26.9]} 23. Bd3 {[%clk
0:02:42.2]} 23... Re6 {[%clk 0:01:20]} 24. Rd1 {[%clk 0:02:41.5]} 24... Rde8
{[%clk 0:01:17.7]} 25. Kf1 {[%clk 0:02:41.7]} 25... Kg7 {[%clk 0:01:14.3]} 26.
a4 {[%clk 0:02:33.4]} 26... R8e7 {[%clk 0:00:57.9]} 27. b4 {[%clk 0:02:29.8]}
27... c5 {[%clk 0:00:43.8]} 28. a5 {[%clk 0:01:45.7]} 28... Bd8 {[%clk 0:00:28]}
29. bxc5 {[%clk 0:01:38]} 29... Rxa6 {[%clk 0:00:20.6]} 30. Bxa6 {[%clk
0:01:38.9]} 30... Bxa5 {[%clk 0:00:21.4]} 31. g3 {[%clk 0:01:39.5]} 31... Rc7
{[%clk 0:00:16.1]} 32. Rxd5 {[%clk 0:01:36.5]} 32... Bb4 {[%clk 0:00:16]} 33. c4
{[%clk 0:01:26.9]} 33... Bxc5 {[%clk 0:00:14.7]} 34. Bb5 {[%clk 0:01:26.6]}
34... a5 {[%clk 0:00:13.9]} 35. f4 {[%clk 0:01:21.7]} 35... Bb4 {[%clk 0:00:14]}
36. Ke2 {[%clk 0:01:20.5]} 36... a4 {[%clk 0:00:13.8]} 37. Bxa4 {[%clk
0:01:12.9]} 37... Rxc4 {[%clk 0:00:12.5]} 38. Bb5 {[%clk 0:01:09.2]} 38... Rc5
{[%clk 0:00:11.3]} 39. Rxc5 {[%clk 0:01:08.4]} 39... Bxc5 {[%clk 0:00:12.2]} 40.
Bd3 {[%clk 0:01:09.2]} 40... Bd6 {[%clk 0:00:12.3]} 41. Kf3 {[%clk 0:01:10.1]}
41... Be7 {[%clk 0:00:12.6]} 42. Kg4 {[%clk 0:01:10.5]} 42... Bd8 {[%clk
0:00:13]} 43. Bc4 {[%clk 0:01:11]} 43... Be7 {[%clk 0:00:13.5]} 44. Kh5 {[%clk
0:01:11.5]} 44... Bd8 {[%clk 0:00:13.8]} 45. g4 {[%clk 0:01:09.2]} 45... Bc7
{[%clk 0:00:13.6]} 46. f5 {[%clk 0:01:09.5]} 46... Bg3 {[%clk 0:00:13.1]} 47.
Bxf7 {[%clk 0:01:01]} 47... Bf4 {[%clk 0:00:11.7]} 48. Bc4 {[%clk 0:01:00.1]}
48... Bg3 {[%clk 0:00:11.7]} 49. Bb3 {[%clk 0:00:59.3]} 49... Bf2 {[%clk
0:00:12]} 50. h4 {[%clk 0:00:58.1]} 50... Be3 {[%clk 0:00:11.5]} 51. Bc4 {[%clk
0:00:58.8]} 51... Bd2 {[%clk 0:00:11.7]} 52. Ba2 {[%clk 0:00:58.9]} 52... Be3
{[%clk 0:00:12]} 53. Bb3 {[%clk 0:00:58.4]} 53... Bd2 {[%clk 0:00:12.4]} 1/2-1/2

[Event "*** SCC Grand Prix: Titled Tuesday Blitz"]
[Site "Chess.com"]
[Date "2020.07.07"]
[Round "1"]
[White "RaphCamora"]
[Black "David_Paravyan"]
[Result "0-1"]
[WhiteElo "2456"]
[BlackElo "2985"]
[TimeControl "180+1"]
[EndTime "10:07:20 PDT"]
[Termination "David_Paravyan won by resignation"]

1. e4 {[%clk 0:02:55.4]} 1... e5 {[%clk 0:02:59.7]} 2. Nf3 {[%clk 0:02:54.6]}
2... Nc6 {[%clk 0:03:00.3]} 3. Bc4 {[%clk 0:02:54.4]} 3... d6 {[%clk 0:02:58.9]}
4. c3 {[%clk 0:02:52.3]} 4... f5 {[%clk 0:02:58.5]} 5. d3 {[%clk 0:02:27.4]}
5... Qf6 {[%clk 0:02:57.8]} 6. Nbd2 {[%clk 0:02:15.2]} 6... f4 {[%clk
0:02:43.7]} 7. b4 {[%clk 0:02:12.9]} 7... Nge7 {[%clk 0:02:24.2]} 8. h4 {[%clk
0:01:56.8]} 8... g6 {[%clk 0:01:54.4]} 9. Bb2 {[%clk 0:01:44.3]} 9... Bg7 {[%clk
0:01:53.4]} 10. Qe2 {[%clk 0:01:43.1]} 10... h6 {[%clk 0:01:50.8]} 11. O-O-O
{[%clk 0:01:41.1]} 11... Bg4 {[%clk 0:01:16.1]} 12. Nb3 {[%clk 0:01:37.7]} 12...
a5 {[%clk 0:01:07.8]} 13. b5 {[%clk 0:01:34.1]} 13... Nb8 {[%clk 0:01:04.3]} 14.
a4 {[%clk 0:01:33.4]} 14... Nd7 {[%clk 0:01:04.3]} 15. Nbd2 {[%clk 0:01:20]}
15... Nc5 {[%clk 0:01:03.7]} 16. Bb3 {[%clk 0:01:12.8]} 16... Nxb3+ {[%clk
0:00:47.7]} 17. Nxb3 {[%clk 0:01:13.7]} 17... c6 {[%clk 0:00:40]} 18. c4 {[%clk
0:01:12.6]} 18... cxb5 {[%clk 0:00:38]} 19. cxb5 {[%clk 0:01:10]} 19... Qe6
{[%clk 0:00:34.8]} 20. Qc2 {[%clk 0:00:08.9]} 20... Rc8 {[%clk 0:00:34.2]} 21.
Bc3 {[%clk 0:00:08.7]} 21... d5 {[%clk 0:00:31.5]} 22. d4 {[%clk 0:00:08.8]}
22... dxe4 {[%clk 0:00:25]} 23. Nxe5 {[%clk 0:00:08.9]} 23... Bxe5 {[%clk
0:00:24.5]} 24. dxe5 {[%clk 0:00:08.1]} 24... Qc4 {[%clk 0:00:25.2]} 25. Kb2
{[%clk 0:00:07]} 25... Nd5 {[%clk 0:00:21.5]} 26. Rxd5 {[%clk 0:00:05.8]} 26...
Qxd5 {[%clk 0:00:22]} 27. e6 {[%clk 0:00:05.7]} 27... Bxe6 {[%clk 0:00:20]} 28.
f3 {[%clk 0:00:06.3]} 28... e3 {[%clk 0:00:16.2]} 29. Qxg6+ {[%clk 0:00:05.5]}
29... Bf7 {[%clk 0:00:15.4]} 30. Qe4+ {[%clk 0:00:05.1]} 30... Qxe4 {[%clk
0:00:15.5]} 31. fxe4 {[%clk 0:00:06]} 31... Rg8 {[%clk 0:00:16]} 32. Be5 {[%clk
0:00:05.2]} 32... Rxg2+ {[%clk 0:00:16]} 33. Ka3 {[%clk 0:00:06.1]} 33... f3
{[%clk 0:00:15.4]} 34. Rd1 {[%clk 0:00:04.6]} 34... Rd8 {[%clk 0:00:14.2]} 35.
Rc1 {[%clk 0:00:04.1]} 35... f2 {[%clk 0:00:14.3]} 36. Bf6 {[%clk 0:00:04.1]}
36... e2 {[%clk 0:00:13.6]} 37. Nc5 {[%clk 0:00:03.7]} 37... e1=Q {[%clk
0:00:12.9]} 0-1

[Event "*** SCC Grand Prix: Titled Tuesday Blitz"]
[Site "Chess.com"]
[Date "2020.07.07"]
[Round "1"]
[White "novocane"]
[Black "Zurability"]
[Result "0-1"]
[WhiteElo "2258"]
[BlackElo "2593"]
[TimeControl "180+1"]
[EndTime "10:07:20 PDT"]
[Termination "Zurability won on time"]

1. d4 {[%clk 0:03:00.7]} 1... Nf6 {[%clk 0:02:50.7]} 2. c4 {[%clk 0:02:59.4]}
2... e6 {[%clk 0:02:44.2]} 3. Nc3 {[%clk 0:02:55.6]} 3... Bb4 {[%clk 0:02:38.3]}
4. e3 {[%clk 0:02:55.4]} 4... O-O {[%clk 0:02:37.7]} 5. Ne2 {[%clk 0:02:52.2]}
5... Re8 {[%clk 0:02:35.7]} 6. a3 {[%clk 0:02:51.6]} 6... Bf8 {[%clk 0:02:35.3]}
7. e4 {[%clk 0:02:49.2]} 7... d6 {[%clk 0:02:29.3]} 8. Ng3 {[%clk 0:02:45.2]}
8... e5 {[%clk 0:02:29.5]} 9. d5 {[%clk 0:02:44.5]} 9... c6 {[%clk 0:02:27.6]}
10. Be2 {[%clk 0:02:41.2]} 10... cxd5 {[%clk 0:02:27.1]} 11. cxd5 {[%clk
0:02:40.7]} 11... g6 {[%clk 0:02:15.9]} 12. O-O {[%clk 0:02:38.7]} 12... h5
{[%clk 0:02:15.7]} 13. Bg5 {[%clk 0:02:08.3]} 13... Be7 {[%clk 0:02:08.7]} 14.
f4 {[%clk 0:02:05]} 14... exf4 {[%clk 0:02:03.1]} 15. Bxf4 {[%clk 0:01:53.3]}
15... Nbd7 {[%clk 0:01:56.9]} 16. Qd2 {[%clk 0:01:16.3]} 16... Ne5 {[%clk
0:01:48.3]} 17. h3 {[%clk 0:01:01.8]} 17... Nfd7 {[%clk 0:01:39.4]} 18. Rf2
{[%clk 0:00:56.4]} 18... Bh4 {[%clk 0:01:35.3]} 19. Raf1 {[%clk 0:00:49.7]}
19... Qe7 {[%clk 0:00:56.7]} 20. Bxh5 {[%clk 0:00:14.2]} 20... gxh5 {[%clk
0:00:50.4]} 21. Nf5 {[%clk 0:00:12.6]} 21... Bxf2+ {[%clk 0:00:42.3]} 22. Qxf2
{[%clk 0:00:12.5]} 22... Qf6 {[%clk 0:00:43]} 23. Qg3+ {[%clk 0:00:10]} 23...
Qg6 {[%clk 0:00:38.5]} 24. Qh4 {[%clk 0:00:08.3]} 24... Nf8 {[%clk 0:00:29.9]}
25. Ne7+ {[%clk 0:00:05.7]} 25... Rxe7 {[%clk 0:00:30.3]} 26. Qxe7 {[%clk
0:00:06.6]} 26... Bxh3 {[%clk 0:00:30.9]} 27. Rf2 {[%clk 0:00:06.6]} 27... Nd3
{[%clk 0:00:27.9]} 28. Bxd6 {[%clk 0:00:02.6]} 28... Nxf2 {[%clk 0:00:26.3]} 29.
Kxf2 {[%clk 0:00:03]} 29... Qxg2+ {[%clk 0:00:23.5]} 30. Ke3 {[%clk 0:00:03.4]}
30... Qg6 {[%clk 0:00:21.4]} 31. Ne2 {[%clk 0:00:02.9]} 31... Bg4 {[%clk
0:00:14.2]} 32. Nf4 {[%clk 0:00:02.8]} 32... Qh6 {[%clk 0:00:14.8]} 33. e5
{[%clk 0:00:02.5]} 33... Ng6 {[%clk 0:00:13.6]} 34. Qf6 {[%clk 0:00:01.5]} 34...
Qg7 {[%clk 0:00:13.8]} 0-1

[Event "*** SCC Grand Prix: Titled Tuesday Blitz"]
[Site "Chess.com"]
[Date "2020.07.07"]
[Round "1"]
[White "Escanor89"]
[Black "Ze-Pequeno"]
[Result "0-1"]
[WhiteElo "2550"]
[BlackElo "2234"]
[TimeControl "180+1"]
[EndTime "10:07:20 PDT"]
[Termination "Ze-Pequeno won by resignation"]

1. c4 {[%clk 0:03:00.9]} 1... Nf6 {[%clk 0:02:55.8]} 2. Nc3 {[%clk 0:03:00.5]}
2... c5 {[%clk 0:02:55.5]} 3. Nf3 {[%clk 0:02:58.1]} 3... b6 {[%clk 0:02:54.8]}
4. d4 {[%clk 0:02:57.4]} 4... cxd4 {[%clk 0:02:54.5]} 5. Nxd4 {[%clk 0:02:58]}
5... Bb7 {[%clk 0:02:54.5]} 6. f3 {[%clk 0:02:57]} 6... d6 {[%clk 0:02:52.5]} 7.
e4 {[%clk 0:02:56.8]} 7... e6 {[%clk 0:02:52.3]} 8. Be3 {[%clk 0:02:57.2]} 8...
a6 {[%clk 0:02:52.4]} 9. Be2 {[%clk 0:02:57]} 9... Nbd7 {[%clk 0:02:52.5]} 10.
O-O {[%clk 0:02:56.3]} 10... Be7 {[%clk 0:02:52.9]} 11. Qd2 {[%clk 0:02:56.1]}
11... O-O {[%clk 0:02:53.1]} 12. Rac1 {[%clk 0:02:53.7]} 12... Qc7 {[%clk
0:02:52.4]} 13. a3 {[%clk 0:02:53.5]} 13... Rac8 {[%clk 0:02:51.3]} 14. b4
{[%clk 0:02:53.1]} 14... Rfe8 {[%clk 0:02:50.6]} 15. Kh1 {[%clk 0:02:38.6]}
15... Qb8 {[%clk 0:02:48.7]} 16. Bg1 {[%clk 0:02:35.2]} 16... h5 {[%clk
0:02:37.7]} 17. Rc2 {[%clk 0:02:33.5]} 17... h4 {[%clk 0:02:36.6]} 18. Nb3
{[%clk 0:01:57.4]} 18... h3 {[%clk 0:02:30.6]} 19. gxh3 {[%clk 0:01:53.5]} 19...
Ba8 {[%clk 0:02:12.9]} 20. Rd1 {[%clk 0:01:45.2]} 20... Ne5 {[%clk 0:02:07.8]}
21. Na4 {[%clk 0:01:41]} 21... Nxe4 {[%clk 0:01:55.9]} 22. Qf4 {[%clk
0:01:10.2]} 22... Bg5 {[%clk 0:01:46.9]} 23. Qxe4 {[%clk 0:01:03.2]} 23... Bxe4
{[%clk 0:01:44.7]} 24. fxe4 {[%clk 0:01:03.5]} 24... b5 {[%clk 0:01:38.9]} 25.
Nb6 {[%clk 0:01:01.8]} 25... bxc4 {[%clk 0:01:26.6]} 26. Na5 {[%clk 0:01:00.9]}
26... Rcd8 {[%clk 0:01:14.7]} 27. Naxc4 {[%clk 0:00:37.8]} 27... Nxc4 {[%clk
0:01:13.4]} 28. Nxc4 {[%clk 0:00:37.5]} 28... d5 {[%clk 0:01:12.2]} 29. exd5
{[%clk 0:00:34.5]} 29... Rxd5 {[%clk 0:01:10.9]} 30. Rf1 {[%clk 0:00:29.5]}
30... Rc8 {[%clk 0:01:05]} 31. Bc5 {[%clk 0:00:23.1]} 31... Rd7 {[%clk
0:00:57.8]} 32. Bf3 {[%clk 0:00:20.1]} 32... Be7 {[%clk 0:00:56.1]} 33. Nb6
{[%clk 0:00:16.7]} 33... Rdc7 {[%clk 0:00:52.5]} 34. Nxc8 {[%clk 0:00:16.4]}
34... Qxc8 {[%clk 0:00:53.4]} 35. Rfc1 {[%clk 0:00:16.3]} 35... Bxc5 {[%clk
0:00:53]} 36. Rxc5 {[%clk 0:00:16.4]} 36... Rxc5 {[%clk 0:00:52.9]} 37. bxc5
{[%clk 0:00:16.7]} 37... Qc7 {[%clk 0:00:49.7]} 38. c6 {[%clk 0:00:16.9]} 38...
f5 {[%clk 0:00:49.3]} 39. Bg2 {[%clk 0:00:16.4]} 39... e5 {[%clk 0:00:49]} 40.
Bd5+ {[%clk 0:00:15.2]} 40... Kh7 {[%clk 0:00:49.3]} 41. Rc4 {[%clk 0:00:14.6]}
41... e4 {[%clk 0:00:49.3]} 42. Rb4 {[%clk 0:00:13.2]} 42... Qf4 {[%clk
0:00:48.4]} 43. Rb1 {[%clk 0:00:12]} 43... Qf3+ {[%clk 0:00:47.2]} 44. Kg1
{[%clk 0:00:12.1]} 44... Qe3+ {[%clk 0:00:47.4]} 45. Kh1 {[%clk 0:00:12.1]}
45... Qd3 {[%clk 0:00:47.4]} 46. Rg1 {[%clk 0:00:11.9]} 46... Qxd5 {[%clk
0:00:46.9]} 47. c7 {[%clk 0:00:11.8]} 47... e3+ {[%clk 0:00:47.2]} 48. Rg2
{[%clk 0:00:11.2]} 48... Qd1+ {[%clk 0:00:46.6]} 49. Rg1 {[%clk 0:00:11]} 49...
Qf3+ {[%clk 0:00:47]} 50. Rg2 {[%clk 0:00:10.3]} 50... Qc6 {[%clk 0:00:47.4]}
0-1

[Event "*** SCC Grand Prix: Titled Tuesday Blitz"]
[Site "Chess.com"]
[Date "2020.07.07"]
[Round "1"]
[White "praveenb2002"]
[Black "margarita_2703"]
[Result "1-0"]
[WhiteElo "2712"]
[BlackElo "2385"]
[TimeControl "180+1"]
[EndTime "10:07:22 PDT"]
[Termination "praveenb2002 won by checkmate"]

1. e4 {[%clk 0:02:59]} 1... Nf6 {[%clk 0:02:59.6]} 2. e5 {[%clk 0:02:59]} 2...
Nd5 {[%clk 0:02:57.6]} 3. d4 {[%clk 0:02:59.5]} 3... d6 {[%clk 0:02:57.1]} 4.
Nf3 {[%clk 0:02:58.9]} 4... g6 {[%clk 0:02:56.6]} 5. c4 {[%clk 0:02:56.3]} 5...
Nb6 {[%clk 0:02:56.1]} 6. exd6 {[%clk 0:02:57.2]} 6... cxd6 {[%clk 0:02:53.4]}
7. h3 {[%clk 0:02:57.3]} 7... Bg7 {[%clk 0:02:53.1]} 8. Nc3 {[%clk 0:02:53.5]}
8... O-O {[%clk 0:02:52.8]} 9. Be2 {[%clk 0:02:54]} 9... Nc6 {[%clk 0:02:52.2]}
10. Be3 {[%clk 0:02:51.8]} 10... e5 {[%clk 0:02:50]} 11. d5 {[%clk 0:02:46.5]}
11... Ne7 {[%clk 0:02:47.5]} 12. O-O {[%clk 0:02:46.6]} 12... f5 {[%clk
0:02:38.4]} 13. Ng5 {[%clk 0:02:42.7]} 13... f4 {[%clk 0:02:30]} 14. Ne6 {[%clk
0:02:15]} 14... Bxe6 {[%clk 0:02:00.9]} 15. Bxb6 {[%clk 0:02:15.1]} 15... Qxb6
{[%clk 0:01:59.9]} 16. dxe6 {[%clk 0:02:15.2]} 16... Qxb2 {[%clk 0:01:41.5]} 17.
Nb5 {[%clk 0:01:39.8]} 17... Rad8 {[%clk 0:01:34.9]} 18. Bf3 {[%clk 0:01:13.2]}
18... a6 {[%clk 0:01:12.9]} 19. Nc7 {[%clk 0:01:06.7]} 19... e4 {[%clk
0:01:07.7]} 20. Rb1 {[%clk 0:00:51.9]} 20... Qxa2 {[%clk 0:01:03.5]} 21. Nd5
{[%clk 0:00:37.1]} 21... exf3 {[%clk 0:00:43.5]} 22. Nxe7+ {[%clk 0:00:36.7]}
22... Kh8 {[%clk 0:00:43.4]} 23. Nxg6+ {[%clk 0:00:29]} 23... hxg6 {[%clk
0:00:42.3]} 24. e7 {[%clk 0:00:29.5]} 24... Rfe8 {[%clk 0:00:39.3]} 25. exd8=Q
{[%clk 0:00:27]} 25... Rxd8 {[%clk 0:00:39.1]} 26. Qxf3 {[%clk 0:00:27.3]} 26...
Qxc4 {[%clk 0:00:37.3]} 27. Rxb7 {[%clk 0:00:26.9]} 27... d5 {[%clk 0:00:31.5]}
28. Re1 {[%clk 0:00:24.4]} 28... a5 {[%clk 0:00:29.2]} 29. Ree7 {[%clk
0:00:24.2]} 29... Bf6 {[%clk 0:00:18.9]} 30. Rh7+ {[%clk 0:00:22.4]} 30... Kg8
{[%clk 0:00:19.1]} 31. Qg4 {[%clk 0:00:21.8]} 31... Qe4 {[%clk 0:00:16.1]} 32.
Rhd7 {[%clk 0:00:14.9]} 32... Re8 {[%clk 0:00:15.1]} 33. Kh2 {[%clk 0:00:14.2]}
33... Be5 {[%clk 0:00:14.3]} 34. f3 {[%clk 0:00:12.7]} 34... Qd3 {[%clk
0:00:11.5]} 35. Qh4 {[%clk 0:00:11.8]} 35... Qf5 {[%clk 0:00:07.4]} 36. Qh7+
{[%clk 0:00:11.7]} 36... Kf8 {[%clk 0:00:07]} 37. Rf7+ {[%clk 0:00:12.4]} 37...
Qxf7 {[%clk 0:00:06.2]} 38. Qxf7# {[%clk 0:00:13.3]} 1-0

[Event "*** SCC Grand Prix: Titled Tuesday Blitz"]
[Site "Chess.com"]
[Date "2020.07.07"]
[Round "1"]
[White "WilliamSchill"]
[Black "Smile2005"]
[Result "0-1"]
[WhiteElo "1975"]
[BlackElo "2482"]
[TimeControl "180+1"]
[EndTime "10:07:23 PDT"]
[Termination "Smile2005 won on time"]

1. e4 {[%clk 0:02:59.3]} 1... c6 {[%clk 0:02:57.8]} 2. c4 {[%clk 0:02:57]} 2...
d5 {[%clk 0:02:58.7]} 3. cxd5 {[%clk 0:02:56.8]} 3... cxd5 {[%clk 0:02:59.6]} 4.
exd5 {[%clk 0:02:56.9]} 4... Nf6 {[%clk 0:02:58.5]} 5. Nc3 {[%clk 0:02:56.5]}
5... g6 {[%clk 0:02:57.5]} 6. Bc4 {[%clk 0:02:50.2]} 6... Bg7 {[%clk 0:02:55.4]}
7. Nge2 {[%clk 0:02:49.5]} 7... O-O {[%clk 0:02:55.3]} 8. O-O {[%clk 0:02:44.6]}
8... Nbd7 {[%clk 0:02:48.7]} 9. d3 {[%clk 0:02:43.8]} 9... Nb6 {[%clk
0:02:48.7]} 10. Qb3 {[%clk 0:02:43.7]} 10... Bf5 {[%clk 0:02:37]} 11. Be3 {[%clk
0:02:42.5]} 11... Rc8 {[%clk 0:02:32.3]} 12. Bxb6 {[%clk 0:02:29.2]} 12... axb6
{[%clk 0:02:32.3]} 13. Nd4 {[%clk 0:02:23.3]} 13... Bd7 {[%clk 0:02:27.4]} 14.
Nf3 {[%clk 0:02:16.8]} 14... Bf5 {[%clk 0:02:11.3]} 15. Rfe1 {[%clk 0:02:09.1]}
15... Nd7 {[%clk 0:02:09.3]} 16. Na4 {[%clk 0:01:49.5]} 16... Nc5 {[%clk
0:02:03.8]} 17. Nxc5 {[%clk 0:01:48.3]} 17... Rxc5 {[%clk 0:02:04.7]} 18. a4
{[%clk 0:01:43.3]} 18... Qd7 {[%clk 0:01:53.6]} 19. Ne5 {[%clk 0:01:35.5]} 19...
Bxe5 {[%clk 0:01:41.9]} 20. Rxe5 {[%clk 0:01:34.2]} 20... Qd6 {[%clk 0:01:33.7]}
21. Rae1 {[%clk 0:01:32.6]} 21... Rc7 {[%clk 0:01:33.6]} 22. Qd1 {[%clk
0:01:07.9]} 22... Re8 {[%clk 0:01:15.8]} 23. Qe2 {[%clk 0:01:06.7]} 23... Kg7
{[%clk 0:01:07]} 24. h3 {[%clk 0:01:06]} 24... Kf8 {[%clk 0:00:57.8]} 25. Qe3
{[%clk 0:01:05.3]} 25... Bd7 {[%clk 0:00:46.8]} 26. Qh6+ {[%clk 0:00:53.4]}
26... Kg8 {[%clk 0:00:46.5]} 27. h4 {[%clk 0:00:53.2]} 27... Bxa4 {[%clk
0:00:44.7]} 28. h5 {[%clk 0:00:51.2]} 28... b5 {[%clk 0:00:39.2]} 29. Ba2 {[%clk
0:00:47.9]} 29... Bc2 {[%clk 0:00:37.7]} 30. Qd2 {[%clk 0:00:22.3]} 30... b4
{[%clk 0:00:34.4]} 31. hxg6 {[%clk 0:00:16]} 31... hxg6 {[%clk 0:00:25.4]} 32.
Qf4 {[%clk 0:00:07.2]} 32... b3 {[%clk 0:00:20.3]} 33. Bb1 {[%clk 0:00:07.2]}
33... Bxb1 {[%clk 0:00:14.2]} 34. Rxb1 {[%clk 0:00:06.9]} 34... Kg7 {[%clk
0:00:13.3]} 35. Rbe1 {[%clk 0:00:06.1]} 35... Rec8 {[%clk 0:00:11.5]} 36. Qd4
{[%clk 0:00:04.4]} 36... Qf6 {[%clk 0:00:10.7]} 37. f4 {[%clk 0:00:03.1]} 37...
Rc2 {[%clk 0:00:09.5]} 0-1

[Event "*** SCC Grand Prix: Titled Tuesday Blitz"]
[Site "Chess.com"]
[Date "2020.07.07"]
[Round "1"]
[White "KingCrusher275"]
[Black "eljanov"]
[Result "0-1"]
[WhiteElo "2443"]
[BlackElo "2886"]
[TimeControl "180+1"]
[EndTime "10:07:24 PDT"]
[Termination "eljanov won by resignation"]

1. d4 {[%clk 0:02:59.8]} 1... Nf6 {[%clk 0:02:59.4]} 2. c4 {[%clk 0:02:59.8]}
2... e6 {[%clk 0:02:59]} 3. Nc3 {[%clk 0:02:58.7]} 3... Bb4 {[%clk 0:02:58.4]}
4. Qc2 {[%clk 0:02:56.1]} 4... d5 {[%clk 0:02:53.8]} 5. cxd5 {[%clk 0:02:55.5]}
5... exd5 {[%clk 0:02:51.4]} 6. Bg5 {[%clk 0:02:53.6]} 6... h6 {[%clk 0:02:49]}
7. Bh4 {[%clk 0:02:53.6]} 7... g5 {[%clk 0:02:46.5]} 8. Bg3 {[%clk 0:02:53.4]}
8... Nc6 {[%clk 0:02:47]} 9. e3 {[%clk 0:02:49.7]} 9... Ne4 {[%clk 0:02:40.9]}
10. Bd3 {[%clk 0:02:46.2]} 10... Qe7 {[%clk 0:02:37.7]} 11. Ne2 {[%clk
0:02:42.5]} 11... h5 {[%clk 0:02:28.2]} 12. h3 {[%clk 0:02:12.5]} 12... Nxg3
{[%clk 0:02:01.7]} 13. Nxg3 {[%clk 0:02:03.8]} 13... Nxd4 {[%clk 0:02:01.4]} 14.
Qa4+ {[%clk 0:01:57.2]} 14... Bd7 {[%clk 0:01:53.8]} 15. Qd1 {[%clk 0:01:56]}
15... h4 {[%clk 0:01:48.5]} 16. O-O {[%clk 0:01:53.2]} 16... Bxc3 {[%clk
0:01:38.7]} 17. exd4 {[%clk 0:01:45.5]} 17... Bxd4 {[%clk 0:01:15.3]} 18. Re1
{[%clk 0:01:40.1]} 18... hxg3 {[%clk 0:01:11.5]} 19. Rxe7+ {[%clk 0:01:38.3]}
19... Kxe7 {[%clk 0:01:12.4]} 20. Qf3 {[%clk 0:01:17.6]} 20... gxf2+ {[%clk
0:01:02.8]} 21. Kf1 {[%clk 0:01:09.3]} 21... Be6 {[%clk 0:00:55.6]} 22. Rc1
{[%clk 0:01:03.9]} 22... Bb6 {[%clk 0:00:46]} 23. Bf5 {[%clk 0:00:51.2]} 23...
c6 {[%clk 0:00:38.8]} 24. Bxe6 {[%clk 0:00:46.6]} 24... fxe6 {[%clk 0:00:38.6]}
25. Qg3 {[%clk 0:00:44.6]} 25... Rhg8 {[%clk 0:00:38.8]} 26. a4 {[%clk
0:00:42.1]} 26... Kd7 {[%clk 0:00:35.2]} 27. Qg4 {[%clk 0:00:38]} 27... Raf8
{[%clk 0:00:34]} 28. Rc2 {[%clk 0:00:37.2]} 28... Rf4 {[%clk 0:00:33.4]} 29. Qh5
{[%clk 0:00:37.6]} 29... Rgf8 {[%clk 0:00:31.5]} 30. Re2 {[%clk 0:00:36.3]}
30... Rc4 {[%clk 0:00:24]} 31. Qxg5 {[%clk 0:00:33.8]} 31... Rf7 {[%clk
0:00:22]} 32. Qh6 {[%clk 0:00:33]} 32... Kc7 {[%clk 0:00:14]} 33. Rxe6 {[%clk
0:00:25.5]} 33... Rxa4 {[%clk 0:00:14.1]} 34. Qc1 {[%clk 0:00:20.5]} 34... Kd7
{[%clk 0:00:12.4]} 35. Re2 {[%clk 0:00:20.4]} 35... Rff4 {[%clk 0:00:11.1]} 36.
g3 {[%clk 0:00:18.5]} 36... Rfe4 {[%clk 0:00:11]} 37. Rxe4 {[%clk 0:00:17.3]}
37... Rxe4 {[%clk 0:00:11]} 38. Kg2 {[%clk 0:00:09.5]} 38... Re1 {[%clk
0:00:11.1]} 0-1